[Event "Titled Tuesday Blitz June 20 Late 2023"]
[White "Campos, Maria Jose"]
[Black "Sanchez, Robert"]
[WhiteFideId "146803"]
[BlackFideId "2034360"]
[WhiteElo "2170"]
[BlackElo "2072"]
[Result "0-1"]
[Round "9"]
[TimeControl "180+2"]
[Date "2023.06.20"]
[WhiteClock "0:00:08"]
[BlackClock "0:00:41"]
[Board "113"]

1. c4 {[%clk 0:03:00]}  Nf6 {[%clk 0:02:57]} 2. Nc3 {[%clk 0:03:00]}  g6 {[%clk 0:02:57]} 3. g3 {[%clk 0:02:55]}  d6 {[%clk 0:02:57]} 4. Bg2 {[%clk 0:02:55]}  Bg7 {[%clk 0:02:57]} 5. e4 {[%clk 0:02:54]}  O-O {[%clk 0:02:56]} 6. Nge2 {[%clk 0:02:55]}  Nbd7 {[%clk 0:02:57]} 7. d3 {[%clk 0:02:51]}  e5 {[%clk 0:02:57]} 8. Rb1 {[%clk 0:02:50]}  h6 {[%clk 0:02:56]} 9. O-O {[%clk 0:02:49]}  c6 {[%clk 0:02:47]} 10. b4 {[%clk 0:02:48]}  Qe7 {[%clk 0:02:47]} 11. Bb2 {[%clk 0:02:43]}  Nh7 {[%clk 0:02:46]} 12. b5 {[%clk 0:02:42]}  f5 {[%clk 0:02:45]} 13. exf5 {[%clk 0:02:34]}  gxf5 {[%clk 0:02:45]} 14. bxc6 {[%clk 0:02:34]}  bxc6 {[%clk 0:02:46]} 15. Bxc6 {[%clk 0:02:32]}  Rb8 {[%clk 0:02:44]} 16. Ba1 {[%clk 0:02:24]}  Nb6 {[%clk 0:02:41]} 17. Bg2 {[%clk 0:02:21]}  Be6 {[%clk 0:02:38]} 18. Kh1 {[%clk 0:02:14]}  f4 {[%clk 0:02:38]} 19. Ne4 {[%clk 0:02:12]}  f3 {[%clk 0:02:37]} 20. c5 {[%clk 0:01:42]}  fxg2+ {[%clk 0:02:35]} 21. Kxg2 {[%clk 0:01:42]}  dxc5 {[%clk 0:02:31]} 22. Qd2 {[%clk 0:01:31]}  c4 {[%clk 0:02:21]} 23. Bc3 {[%clk 0:01:22]}  cxd3 {[%clk 0:02:14]} 24. Qxd3 {[%clk 0:01:20]}  Bc4 {[%clk 0:02:10]} 25. Qc2 {[%clk 0:01:16]}  Rfc8 {[%clk 0:02:02]} 26. Bb4 {[%clk 0:01:12]}  Qe6 {[%clk 0:01:49]} 27. Qd2 {[%clk 0:01:04]}  Rd8 {[%clk 0:01:36]} 28. Qe1 {[%clk 0:00:54]}  Ng5 {[%clk 0:01:28]} 29. Nxg5 {[%clk 0:00:48]}  hxg5 {[%clk 0:01:28]} 30. a3 {[%clk 0:00:45]}  g4 {[%clk 0:01:25]} 31. Kg1 {[%clk 0:00:44]}  Bd5 {[%clk 0:01:17]} 32. Nc3 {[%clk 0:00:42]}  Bb7 {[%clk 0:01:15]} 33. Qe2 {[%clk 0:00:18]}  Qc6 {[%clk 0:01:09]} 34. f3 {[%clk 0:00:18]}  gxf3 {[%clk 0:01:10]} 35. Qf2 {[%clk 0:00:19]}  e4 {[%clk 0:01:06]} 36. Rfe1 {[%clk 0:00:18]}  Bd4 {[%clk 0:01:05]} 37. Re3 {[%clk 0:00:19]}  Bxe3 {[%clk 0:01:03]} 38. Qxe3 {[%clk 0:00:19]}  Qg6 {[%clk 0:00:55]} 39. Nd1 {[%clk 0:00:13]}  Nd5 {[%clk 0:00:52]} 40. Qb3 {[%clk 0:00:12]}  Kh7 {[%clk 0:00:52]} 41. Nf2 {[%clk 0:00:12]}  Nxb4 {[%clk 0:00:51]} 42. Qxb4 {[%clk 0:00:12]}  e3 {[%clk 0:00:47]} 43. Qe7+ {[%clk 0:00:12]}  Kg8 {[%clk 0:00:44]} 44. Nh3 {[%clk 0:00:08]}  Qxb1# {[%clk 0:00:41]} 0-1


[Site "https://www.chess.com"]

[Event "Titled Tuesday Blitz June 20 Late 2023"]
[White "Martinez, Ayelen"]
[Black "White, John S."]
[WhiteFideId "118702"]
[BlackFideId "2502348"]
[WhiteElo "2074"]
[BlackElo "2033"]
[Result "1-0"]
[Round "9"]
[TimeControl "180+2"]
[Date "2023.06.20"]
[WhiteClock "0:01:28"]
[BlackClock "0:00:23"]
[Board "114"]

1. e4 {[%clk 0:03:00]}  c5 {[%clk 0:02:58]} 2. Nf3 {[%clk 0:02:59]}  e6 {[%clk 0:02:58]} 3. d4 {[%clk 0:03:00]}  cxd4 {[%clk 0:02:57]} 4. Nxd4 {[%clk 0:03:00]}  Nc6 {[%clk 0:02:57]} 5. Nc3 {[%clk 0:03:01]}  d6 {[%clk 0:02:57]} 6. Be3 {[%clk 0:03:01]}  Nf6 {[%clk 0:02:56]} 7. h3 {[%clk 0:03:01]}  Be7 {[%clk 0:02:55]} 8. Bc4 {[%clk 0:03:01]}  a6 {[%clk 0:02:54]} 9. O-O {[%clk 0:03:00]}  Qc7 {[%clk 0:02:53]} 10. Bb3 {[%clk 0:03:00]}  b5 {[%clk 0:02:48]} 11. a3 {[%clk 0:02:46]}  Bb7 {[%clk 0:02:44]} 12. f4 {[%clk 0:02:42]}  Rc8 {[%clk 0:02:23]} 13. f5 {[%clk 0:02:32]}  Nxd4 {[%clk 0:02:16]} 14. Qxd4 {[%clk 0:02:24]}  O-O {[%clk 0:01:57]} 15. fxe6 {[%clk 0:02:21]}  Kh8 {[%clk 0:01:44]} 16. exf7 {[%clk 0:02:19]}  Qc6 {[%clk 0:01:15]} 17. Nd5 {[%clk 0:01:54]}  Nxd5 {[%clk 0:01:07]} 18. Bxd5 {[%clk 0:01:48]}  Qc7 {[%clk 0:01:06]} 19. Bh6 {[%clk 0:01:34]}  Bf6 {[%clk 0:00:47]} 20. Rxf6 {[%clk 0:01:33]}  Bxd5 {[%clk 0:00:43]} 21. Bxg7+ {[%clk 0:01:26]}  Kxg7 {[%clk 0:00:38]} 22. Rf5+ {[%clk 0:01:27]}  Kh6 {[%clk 0:00:23]} 23. Qf6# {[%clk 0:01:28]} 1-0


[Site "https://www.chess.com"]

[Event "Titled Tuesday Blitz June 20 Late 2023"]
[White "disciplinedbrat"]
[Black "Grabs, Peter"]
[BlackFideId "16203887"]
[WhiteElo "2240"]
[BlackElo "1697"]
[Result "1-0"]
[Round "9"]
[TimeControl "180+2"]
[Date "2023.06.20"]
[WhiteClock "0:00:12"]
[BlackClock "0:00:00"]
[Board "116"]

1. d4 {[%clk 0:03:00]}  e6 {[%clk 0:03:00]} 2. Nf3 {[%clk 0:03:01]}  d5 {[%clk 0:03:00]} 3. Bf4 {[%clk 0:03:01]}  Nf6 {[%clk 0:02:58]} 4. Nc3 {[%clk 0:02:56]}  Bd6 {[%clk 0:02:57]} 5. Ne5 {[%clk 0:02:56]}  O-O {[%clk 0:02:56]} 6. e3 {[%clk 0:02:55]}  Nbd7 {[%clk 0:02:55]} 7. Bd3 {[%clk 0:02:53]}  Bxe5 {[%clk 0:02:51]} 8. dxe5 {[%clk 0:02:52]}  Ne8 {[%clk 0:02:38]} 9. h4 {[%clk 0:02:34]}  f6 {[%clk 0:02:28]} 10. Qh5 {[%clk 0:02:26]}  g6 {[%clk 0:02:22]} 11. Bxg6 {[%clk 0:01:18]}  hxg6 {[%clk 0:02:21]} 12. Qxg6+ {[%clk 0:01:19]}  Ng7 {[%clk 0:02:22]} 13. h5 {[%clk 0:01:10]}  Qe8 {[%clk 0:02:12]} 14. Qg3 {[%clk 0:01:06]}  Kh7 {[%clk 0:01:42]} 15. exf6 {[%clk 0:01:02]}  Nf5 {[%clk 0:01:28]} 16. Qf3 {[%clk 0:00:49]}  Nxf6 {[%clk 0:01:19]} 17. g4 {[%clk 0:00:49]}  e5 {[%clk 0:00:53]} 18. gxf5 {[%clk 0:00:30]}  exf4 {[%clk 0:00:50]} 19. O-O-O {[%clk 0:00:29]}  Bxf5 {[%clk 0:00:47]} 20. Qxf4 {[%clk 0:00:29]}  Qd7 {[%clk 0:00:31]} 21. e4 {[%clk 0:00:25]}  Bxe4 {[%clk 0:00:29]} 22. Nxe4 {[%clk 0:00:23]}  Nxe4 {[%clk 0:00:14]} 23. Qxe4+ {[%clk 0:00:23]}  Qf5 {[%clk 0:00:13]} 24. Qg2 {[%clk 0:00:13]}  Qxf2 {[%clk 0:00:11]} 25. Qg6+ {[%clk 0:00:13]}  Kh8 {[%clk 0:00:10]} 26. Qh6+ {[%clk 0:00:12]}  Kg8 {[%clk 0:00:00]} 27. Rhg1+ {[%clk 0:00:12]} 1-0


[Site "https://www.chess.com"]

[Event "Titled Tuesday Blitz June 20 Late 2023"]
[White "Dmitriev, Sergey"]
[Black "Gyulamiryan-koryun"]
[WhiteFideId "14101785"]
[WhiteElo "2132"]
[BlackElo "1886"]
[Result "0-1"]
[Round "9"]
[TimeControl "180+2"]
[Date "2023.06.20"]
[WhiteClock "0:00:35"]
[BlackClock "0:01:07"]
[Board "118"]

1. d4 {[%clk 0:03:00]}  Nf6 {[%clk 0:02:58]} 2. Nf3 {[%clk 0:02:58]}  g6 {[%clk 0:02:57]} 3. Bg5 {[%clk 0:02:54]}  Bg7 {[%clk 0:02:56]} 4. Nc3 {[%clk 0:02:51]}  O-O {[%clk 0:02:55]} 5. e4 {[%clk 0:02:51]}  d6 {[%clk 0:02:55]} 6. Bc4 {[%clk 0:02:50]}  c6 {[%clk 0:02:52]} 7. O-O {[%clk 0:02:49]}  b5 {[%clk 0:02:52]} 8. Bb3 {[%clk 0:02:49]}  b4 {[%clk 0:02:52]} 9. Bxf6 {[%clk 0:02:41]}  exf6 {[%clk 0:02:43]} 10. Ne2 {[%clk 0:02:40]}  d5 {[%clk 0:02:39]} 11. exd5 {[%clk 0:02:36]}  cxd5 {[%clk 0:02:38]} 12. c4 {[%clk 0:02:33]}  Be6 {[%clk 0:02:28]} 13. c5 {[%clk 0:02:31]}  a5 {[%clk 0:02:27]} 14. Ba4 {[%clk 0:02:24]}  Bd7 {[%clk 0:02:24]} 15. Bxd7 {[%clk 0:02:20]}  Qxd7 {[%clk 0:02:23]} 16. b3 {[%clk 0:02:20]}  Nc6 {[%clk 0:02:21]} 17. Ng3 {[%clk 0:02:18]}  Rfe8 {[%clk 0:02:10]} 18. Qd3 {[%clk 0:02:14]}  f5 {[%clk 0:02:05]} 19. Rfe1 {[%clk 0:02:00]}  Re4 {[%clk 0:02:02]} 20. Qc2 {[%clk 0:01:42]}  Nxd4 {[%clk 0:02:00]} 21. Nxd4 {[%clk 0:01:41]}  Rxd4 {[%clk 0:01:59]} 22. Rad1 {[%clk 0:01:38]}  Re8 {[%clk 0:01:47]} 23. Rxe8+ {[%clk 0:01:25]}  Qxe8 {[%clk 0:01:45]} 24. c6 {[%clk 0:01:25]}  Rxd1+ {[%clk 0:01:43]} 25. Qxd1 {[%clk 0:01:22]}  Qxc6 {[%clk 0:01:43]} 26. h4 {[%clk 0:01:18]}  h5 {[%clk 0:01:39]} 27. Ne2 {[%clk 0:01:11]}  Qc5 {[%clk 0:01:34]} 28. Qd3 {[%clk 0:01:07]}  d4 {[%clk 0:01:26]} 29. f3 {[%clk 0:01:02]}  Qe5 {[%clk 0:01:18]} 30. f4 {[%clk 0:00:58]}  Qe4 {[%clk 0:01:17]} 31. Qd2 {[%clk 0:00:47]}  d3 {[%clk 0:01:16]} 32. Ng3 {[%clk 0:00:47]}  Bd4+ {[%clk 0:01:12]} 33. Kh2 {[%clk 0:00:46]}  Qe3 {[%clk 0:01:12]} 34. Qd1 {[%clk 0:00:43]}  d2 {[%clk 0:01:11]} 35. Nxh5 {[%clk 0:00:41]}  Qg1+ {[%clk 0:01:07]} 36. Qxg1 {[%clk 0:00:35]}  Bxg1+ {[%clk 0:01:07]} 0-1


[Site "https://www.chess.com"]

[Event "Titled Tuesday Blitz June 20 Late 2023"]
[White "Vargas, Mauricio"]
[Black "Alexikov, Alexander"]
[WhiteFideId "4404572"]
[BlackFideId "14103958"]
[WhiteElo "1986"]
[BlackElo "2186"]
[Result "0-1"]
[Round "9"]
[TimeControl "180+2"]
[Date "2023.06.20"]
[WhiteClock "0:00:00"]
[BlackClock "0:01:24"]
[Board "119"]

1. e4 {[%clk 0:02:24]}  c5 {[%clk 0:02:58]} 2. Nc3 {[%clk 0:02:24]}  Nc6 {[%clk 0:02:57]} 3. f4 {[%clk 0:02:25]}  g6 {[%clk 0:02:57]} 4. Nf3 {[%clk 0:02:26]}  Bg7 {[%clk 0:02:57]} 5. Bb5 {[%clk 0:02:26]}  Nd4 {[%clk 0:02:45]} 6. Bf1 {[%clk 0:02:25]}  a6 {[%clk 0:02:38]} 7. d3 {[%clk 0:02:25]}  d6 {[%clk 0:02:36]} 8. h3 {[%clk 0:02:22]}  e5 {[%clk 0:02:34]} 9. g3 {[%clk 0:02:20]}  Ne7 {[%clk 0:02:29]} 10. Bg2 {[%clk 0:02:19]}  O-O {[%clk 0:02:27]} 11. O-O {[%clk 0:02:19]}  f5 {[%clk 0:02:27]} 12. Ne2 {[%clk 0:02:06]}  fxe4 {[%clk 0:02:14]} 13. dxe4 {[%clk 0:02:03]}  Bd7 {[%clk 0:02:00]} 14. c3 {[%clk 0:01:58]}  Nxf3+ {[%clk 0:02:00]} 15. Rxf3 {[%clk 0:01:45]}  Qc7 {[%clk 0:01:56]} 16. Rd3 {[%clk 0:01:33]}  Nc8 {[%clk 0:01:48]} 17. Qb3+ {[%clk 0:01:32]}  Kh8 {[%clk 0:01:46]} 18. Be3 {[%clk 0:01:25]}  c4 {[%clk 0:01:44]} 19. Qc2 {[%clk 0:00:36]}  cxd3 {[%clk 0:01:42]} 20. Qxd3 {[%clk 0:00:36]}  Bb5 {[%clk 0:01:38]} 21. Qd2 {[%clk 0:00:36]}  Qc4 {[%clk 0:01:33]} 22. Bf1 {[%clk 0:00:20]}  Qxe4 {[%clk 0:01:31]} 23. Re1 {[%clk 0:00:15]}  Bc6 {[%clk 0:01:26]} 24. Nc1 {[%clk 0:00:10]}  Qh1+ {[%clk 0:01:25]} 25. Kf2 {[%clk 0:00:00]}  Qh2+ {[%clk 0:01:24]} 0-1


[Site "https://www.chess.com"]

[Event "Titled Tuesday Blitz June 20 Late 2023"]
[White "Hu, Merric"]
[Black "Grave, Jacob Templen"]
[WhiteFideId "30906660"]
[BlackFideId "1542656"]
[WhiteElo "1922"]
[BlackElo "2200"]
[Result "0-1"]
[Round "9"]
[TimeControl "180+2"]
[Date "2023.06.20"]
[WhiteClock "0:01:34"]
[BlackClock "0:02:23"]
[Board "121"]

1. c4 {[%clk 0:03:00]}  c5 {[%clk 0:02:58]} 2. Nc3 {[%clk 0:03:00]}  b6 {[%clk 0:02:55]} 3. d4 {[%clk 0:02:57]}  cxd4 {[%clk 0:02:55]} 4. Qxd4 {[%clk 0:02:58]}  Nf6 {[%clk 0:02:54]} 5. e4 {[%clk 0:02:57]}  d6 {[%clk 0:02:52]} 6. Nf3 {[%clk 0:02:55]}  Bb7 {[%clk 0:02:52]} 7. h3 {[%clk 0:02:53]}  Nbd7 {[%clk 0:02:52]} 8. Be3 {[%clk 0:02:50]}  Nc5 {[%clk 0:02:43]} 9. Bd3 {[%clk 0:02:47]}  e5 {[%clk 0:02:41]} 10. Nxe5 {[%clk 0:02:45]}  Ne6 {[%clk 0:02:25]} 11. Nxf7 {[%clk 0:01:34]}  Kxf7 {[%clk 0:02:23]} 0-1


[Site "https://www.chess.com"]

[Event "Titled Tuesday Blitz June 20 Late 2023"]
[White "Ibarra Jerez, Jose Carlos"]
[Black "Yoo, Christopher Woojin"]
[WhiteFideId "2226332"]
[BlackFideId "30909694"]
[WhiteElo "2631"]
[BlackElo "2528"]
[Result "1-0"]
[Round "10"]
[TimeControl "180+2"]
[Date "2023.06.20"]
[WhiteClock "0:00:50"]
[BlackClock "0:00:04"]
[Board "6"]

1. e4 {[%clk 0:03:00]}  e5 {[%clk 0:02:58]} 2. Nf3 {[%clk 0:03:01]}  Nc6 {[%clk 0:02:56]} 3. Nc3 {[%clk 0:03:01]}  Nf6 {[%clk 0:02:52]} 4. h3 {[%clk 0:03:01]}  Bb4 {[%clk 0:02:43]} 5. Nd5 {[%clk 0:03:01]}  Bc5 {[%clk 0:02:33]} 6. c3 {[%clk 0:03:00]}  Nxd5 {[%clk 0:02:08]} 7. exd5 {[%clk 0:03:00]}  e4 {[%clk 0:02:07]} 8. dxc6 {[%clk 0:02:50]}  exf3 {[%clk 0:02:06]} 9. d4 {[%clk 0:02:34]}  O-O {[%clk 0:01:32]} 10. Qxf3 {[%clk 0:02:24]}  Re8+ {[%clk 0:01:23]} 11. Be3 {[%clk 0:02:17]}  Bd6 {[%clk 0:01:17]} 12. cxb7 {[%clk 0:02:17]}  Bxb7 {[%clk 0:01:16]} 13. Qxb7 {[%clk 0:02:18]}  Rxe3+ {[%clk 0:00:42]} 14. fxe3 {[%clk 0:02:16]}  Rb8 {[%clk 0:00:39]} 15. Qe4 {[%clk 0:02:05]}  Bg3+ {[%clk 0:00:35]} 16. Kd1 {[%clk 0:02:01]}  Rxb2 {[%clk 0:00:35]} 17. Bd3 {[%clk 0:02:00]}  g6 {[%clk 0:00:34]} 18. Rf1 {[%clk 0:01:54]}  f5 {[%clk 0:00:25]} 19. Qd5+ {[%clk 0:01:48]}  Kg7 {[%clk 0:00:26]} 20. Rb1 {[%clk 0:01:42]}  Qb8 {[%clk 0:00:25]} 21. Qxd7+ {[%clk 0:01:09]}  Kh6 {[%clk 0:00:24]} 22. Kc1 {[%clk 0:01:10]}  Rxb1+ {[%clk 0:00:19]} 23. Bxb1 {[%clk 0:01:11]}  Bd6 {[%clk 0:00:17]} 24. Qa4 {[%clk 0:01:10]}  Qd8 {[%clk 0:00:09]} 25. Qc2 {[%clk 0:01:02]}  Ba3+ {[%clk 0:00:07]} 26. Kd1 {[%clk 0:01:01]}  Qg5 {[%clk 0:00:07]} 27. Qf2 {[%clk 0:01:00]}  Bd6 {[%clk 0:00:05]} 28. Bd3 {[%clk 0:00:54]}  f4 {[%clk 0:00:04]} 29. exf4 {[%clk 0:00:52]}  Qa5 {[%clk 0:00:05]} 30. Qd2 {[%clk 0:00:51]}  Kg7 {[%clk 0:00:04]} 31. f5 {[%clk 0:00:50]} 1-0


[Site "https://www.chess.com"]

[Event "Titled Tuesday Blitz June 20 Late 2023"]
[White "Tristan, Leonardo"]
[Black "Eljanov, Pavel"]
[WhiteFideId "113816"]
[BlackFideId "14102951"]
[WhiteElo "2461"]
[BlackElo "2598"]
[Result "1-0"]
[Round "10"]
[TimeControl "180+2"]
[Date "2023.06.20"]
[WhiteClock "0:00:47"]
[BlackClock "0:00:10"]
[Board "9"]

1. d4 {[%clk 0:03:00]}  d5 {[%clk 0:02:59]} 2. Nf3 {[%clk 0:03:01]}  Nf6 {[%clk 0:02:59]} 3. Bf4 {[%clk 0:03:01]}  c5 {[%clk 0:02:59]} 4. e3 {[%clk 0:03:01]}  Nc6 {[%clk 0:02:59]} 5. Nbd2 {[%clk 0:03:02]}  Bg4 {[%clk 0:02:59]} 6. c3 {[%clk 0:03:01]}  e6 {[%clk 0:02:59]} 7. Qb3 {[%clk 0:03:02]}  Qc8 {[%clk 0:02:52]} 8. Nh4 {[%clk 0:03:02]}  Be7 {[%clk 0:02:47]} 9. h3 {[%clk 0:03:02]}  Bh5 {[%clk 0:02:48]} 10. g4 {[%clk 0:03:02]}  Bg6 {[%clk 0:02:48]} 11. Nxg6 {[%clk 0:03:02]}  hxg6 {[%clk 0:02:48]} 12. Bg2 {[%clk 0:02:58]}  Qd7 {[%clk 0:02:38]} 13. O-O {[%clk 0:02:51]}  cxd4 {[%clk 0:02:23]} 14. cxd4 {[%clk 0:02:50]}  Bd6 {[%clk 0:02:16]} 15. Bxd6 {[%clk 0:02:46]}  Qxd6 {[%clk 0:02:16]} 16. Qxb7 {[%clk 0:02:26]}  Rb8 {[%clk 0:02:12]} 17. Nc4 {[%clk 0:02:22]}  dxc4 {[%clk 0:01:23]} 18. Qxc6+ {[%clk 0:02:21]}  Qxc6 {[%clk 0:01:23]} 19. Bxc6+ {[%clk 0:02:22]}  Ke7 {[%clk 0:01:24]} 20. b3 {[%clk 0:02:09]}  Rxh3 {[%clk 0:01:16]} 21. bxc4 {[%clk 0:02:09]}  Nxg4 {[%clk 0:01:04]} 22. Rfb1 {[%clk 0:02:03]}  Rhh8 {[%clk 0:01:03]} 23. Rb3 {[%clk 0:01:53]}  Rhc8 {[%clk 0:00:47]} 24. Bf3 {[%clk 0:01:48]}  Nf6 {[%clk 0:00:43]} 25. Rab1 {[%clk 0:01:38]}  Rxb3 {[%clk 0:00:43]} 26. axb3 {[%clk 0:01:39]}  e5 {[%clk 0:00:28]} 27. Ra1 {[%clk 0:01:18]}  Rc7 {[%clk 0:00:27]} 28. Kf1 {[%clk 0:01:00]}  g5 {[%clk 0:00:25]} 29. Ra5 {[%clk 0:00:50]}  exd4 {[%clk 0:00:20]} 30. exd4 {[%clk 0:00:50]}  g4 {[%clk 0:00:21]} 31. Bg2 {[%clk 0:00:51]}  g6 {[%clk 0:00:17]} 32. Ke2 {[%clk 0:00:51]}  Nd7 {[%clk 0:00:14]} 33. Kd3 {[%clk 0:00:49]}  f5 {[%clk 0:00:15]} 34. Ra6 {[%clk 0:00:47]}  Nf6 {[%clk 0:00:12]} 35. d5 {[%clk 0:00:47]}  f4 {[%clk 0:00:10]} 36. d6+ {[%clk 0:00:47]} 1-0


[Site "https://www.chess.com"]

[Event "Titled Tuesday Blitz June 20 Late 2023"]
[White "Riehle, Marco"]
[Black "Anton Guijarro, David"]
[WhiteFideId "12904392"]
[BlackFideId "2285525"]
[WhiteElo "2462"]
[BlackElo "2618"]
[Result "0-1"]
[Round "10"]
[TimeControl "180+2"]
[Date "2023.06.20"]
[WhiteClock "0:02:00"]
[BlackClock "0:00:40"]
[Board "12"]

1. e4 {[%clk 0:02:59]}  c6 {[%clk 0:03:00]} 2. c4 {[%clk 0:02:59]}  e5 {[%clk 0:02:58]} 3. d4 {[%clk 0:02:59]}  Nf6 {[%clk 0:02:58]} 4. Nc3 {[%clk 0:02:58]}  Bb4 {[%clk 0:02:57]} 5. f3 {[%clk 0:02:57]}  exd4 {[%clk 0:02:53]} 6. Qxd4 {[%clk 0:02:58]}  O-O {[%clk 0:02:50]} 7. Bg5 {[%clk 0:02:57]}  d6 {[%clk 0:02:45]} 8. O-O-O {[%clk 0:02:54]}  Nbd7 {[%clk 0:02:43]} 9. Nge2 {[%clk 0:02:50]}  a5 {[%clk 0:02:36]} 10. h4 {[%clk 0:02:48]}  a4 {[%clk 0:02:33]} 11. a3 {[%clk 0:02:47]}  Bc5 {[%clk 0:02:32]} 12. Qd2 {[%clk 0:02:47]}  Qb6 {[%clk 0:02:32]} 13. Nd4 {[%clk 0:02:43]}  Nh5 {[%clk 0:01:52]} 14. Nf5 {[%clk 0:02:35]}  Ne5 {[%clk 0:01:49]} 15. Be3 {[%clk 0:02:32]}  Bxf5 {[%clk 0:01:46]} 16. Bxc5 {[%clk 0:02:31]}  dxc5 {[%clk 0:01:42]} 17. exf5 {[%clk 0:02:31]}  Ng3 {[%clk 0:01:42]} 18. Rh3 {[%clk 0:02:31]}  Nxf1 {[%clk 0:01:37]} 19. Rxf1 {[%clk 0:02:30]}  Nxc4 {[%clk 0:01:37]} 20. Qe2 {[%clk 0:02:29]}  Qb3 {[%clk 0:01:36]} 21. f4 {[%clk 0:02:29]}  Rfe8 {[%clk 0:01:34]} 22. Qf2 {[%clk 0:02:29]}  Rad8 {[%clk 0:01:29]} 23. Rd1 {[%clk 0:02:28]}  Rxd1+ {[%clk 0:01:24]} 24. Nxd1 {[%clk 0:02:29]}  Qa2 {[%clk 0:01:21]} 25. Rd3 {[%clk 0:02:14]}  Na5 {[%clk 0:01:00]} 26. g4 {[%clk 0:02:07]}  Nb3+ {[%clk 0:00:57]} 27. Kc2 {[%clk 0:02:07]}  Qa1 {[%clk 0:00:40]} 28. Rxb3 {[%clk 0:02:00]}  axb3+ {[%clk 0:00:40]} 0-1


[Site "https://www.chess.com"]

[Event "Titled Tuesday Blitz June 20 Late 2023"]
[White "Makhnev, Denis"]
[Black "Nazari, Arad"]
[WhiteFideId "13707647"]
[BlackFideId "12577324"]
[WhiteElo "2515"]
[BlackElo "2175"]
[Result "0-1"]
[Round "10"]
[TimeControl "180+2"]
[Date "2023.06.20"]
[WhiteClock "0:00:40"]
[BlackClock "0:00:05"]
[Board "13"]

1. d4 {[%clk 0:03:00]}  Nf6 {[%clk 0:02:59]} 2. Nc3 {[%clk 0:03:00]}  d5 {[%clk 0:02:58]} 3. Bf4 {[%clk 0:03:00]}  g6 {[%clk 0:02:45]} 4. h4 {[%clk 0:03:00]}  Bg7 {[%clk 0:02:45]} 5. h5 {[%clk 0:02:59]}  Nxh5 {[%clk 0:02:44]} 6. Rxh5 {[%clk 0:02:59]}  gxh5 {[%clk 0:02:45]} 7. e3 {[%clk 0:02:59]}  Bg4 {[%clk 0:02:41]} 8. Be2 {[%clk 0:02:59]}  Qd7 {[%clk 0:02:34]} 9. Nf3 {[%clk 0:02:56]}  Nc6 {[%clk 0:02:27]} 10. Nb5 {[%clk 0:02:48]}  Rc8 {[%clk 0:02:20]} 11. Qd2 {[%clk 0:02:45]}  a6 {[%clk 0:02:21]} 12. Nc3 {[%clk 0:02:45]}  f6 {[%clk 0:02:12]} 13. O-O-O {[%clk 0:02:45]}  O-O {[%clk 0:02:09]} 14. Bg3 {[%clk 0:02:40]}  Rcd8 {[%clk 0:02:05]} 15. Kb1 {[%clk 0:02:39]}  e5 {[%clk 0:01:51]} 16. Bh4 {[%clk 0:02:27]}  exd4 {[%clk 0:01:38]} 17. exd4 {[%clk 0:02:28]}  Rde8 {[%clk 0:01:35]} 18. Rg1 {[%clk 0:02:19]}  Ne7 {[%clk 0:01:33]} 19. Bg3 {[%clk 0:02:15]}  Ng6 {[%clk 0:01:24]} 20. Bd3 {[%clk 0:02:13]}  f5 {[%clk 0:01:17]} 21. Ne5 {[%clk 0:02:13]}  Nxe5 {[%clk 0:01:15]} 22. Bxe5 {[%clk 0:02:13]}  Bxe5 {[%clk 0:01:04]} 23. dxe5 {[%clk 0:02:14]}  f4 {[%clk 0:00:58]} 24. Nxd5 {[%clk 0:02:05]}  Rxe5 {[%clk 0:00:59]} 25. Nxf4 {[%clk 0:01:57]}  Qg7 {[%clk 0:00:55]} 26. f3 {[%clk 0:01:52]}  Bxf3 {[%clk 0:00:51]} 27. Bc4+ {[%clk 0:01:50]}  Kh8 {[%clk 0:00:49]} 28. Ne6 {[%clk 0:01:51]}  Rxe6 {[%clk 0:00:41]} 29. Bxe6 {[%clk 0:01:52]}  Bg4 {[%clk 0:00:32]} 30. Bb3 {[%clk 0:01:50]}  Qf6 {[%clk 0:00:31]} 31. a4 {[%clk 0:01:49]}  Rd8 {[%clk 0:00:31]} 32. Qe3 {[%clk 0:01:46]}  Kg7 {[%clk 0:00:28]} 33. Re1 {[%clk 0:01:45]}  Rd1+ {[%clk 0:00:25]} 34. Rxd1 {[%clk 0:01:45]}  Bxd1 {[%clk 0:00:25]} 35. Qg3+ {[%clk 0:01:46]}  Kh6 {[%clk 0:00:18]} 36. Qxc7 {[%clk 0:01:46]}  Qf1 {[%clk 0:00:12]} 37. Ka2 {[%clk 0:01:39]}  Bg4 {[%clk 0:00:07]} 38. Qxb7 {[%clk 0:01:39]}  Kg5 {[%clk 0:00:08]} 39. Qe7+ {[%clk 0:01:36]}  Qf6 {[%clk 0:00:06]} 40. Qxf6+ {[%clk 0:01:29]}  Kxf6 {[%clk 0:00:07]} 41. Bd5 {[%clk 0:01:30]}  Ke5 {[%clk 0:00:07]} 42. Bb7 {[%clk 0:01:25]}  a5 {[%clk 0:00:07]} 43. c3 {[%clk 0:01:26]}  h4 {[%clk 0:00:06]} 44. b4 {[%clk 0:01:26]}  axb4 {[%clk 0:00:04]} 45. cxb4 {[%clk 0:01:26]}  h3 {[%clk 0:00:04]} 46. gxh3 {[%clk 0:01:27]}  Bxh3 {[%clk 0:00:05]} 47. a5 {[%clk 0:01:28]}  Kd6 {[%clk 0:00:05]} 48. Be4 {[%clk 0:01:26]}  h5 {[%clk 0:00:04]} 49. Kb3 {[%clk 0:01:26]}  Bf1 {[%clk 0:00:04]} 50. Ka4 {[%clk 0:01:25]}  h4 {[%clk 0:00:04]} 51. b5 {[%clk 0:01:26]}  Kc7 {[%clk 0:00:03]} 52. b6+ {[%clk 0:01:25]}  Kd6 {[%clk 0:00:03]} 53. Kb4 {[%clk 0:01:19]}  h3 {[%clk 0:00:03]} 54. Kc3 {[%clk 0:01:19]}  Bg2 {[%clk 0:00:03]} 55. Kd4 {[%clk 0:01:20]}  Bxe4 {[%clk 0:00:03]} 56. a6 {[%clk 0:00:58]}  h2 {[%clk 0:00:04]} 57. a7 {[%clk 0:00:59]}  Bb7 {[%clk 0:00:04]} 58. a8=Q {[%clk 0:00:59]}  Bxa8 {[%clk 0:00:04]} 59. b7 {[%clk 0:01:00]}  Bxb7 {[%clk 0:00:04]} 60. Ke3 {[%clk 0:00:40]}  h1=Q {[%clk 0:00:05]} 0-1


[Site "https://www.chess.com"]